Cogmind - Beta 16 @@@ ROGUE MODE // 2025.12.07 @ 23:14:32 Player: AngelSpirit Result: Destroyed by L8-5OZ(R) with Subdweller Machine Gun Performance ------------- Evolutions (0) 0 Regions Visited (2) 400 Robots Destroyed (24) 120 Value Destroyed (550) 550 Prototype IDs (0) 0 Alien Tech Used (0) 0 Bonus (0) 0 TOTAL SCORE: 1070 Bonus ------- None Cogmind --------- Core Integrity 0/250 Matter 184/300 Energy 246/250 System Corruption 0% Temperature Cool (0) Movement Rolling (131) Ox3 Location -10/Subcaves Parts ------- > --- POWER (1) -------- Ion Engine > --- PROPULSION (2) --- Wheel Subdweller Monowheel > --- UTILITY (2) ------ Huge Storage Unit Sensor Array > --- WEAPON (2) ------- Light Cannon Light Cannon > --- INVENTORY (25) --- Light Ion Engine Wheel Compact Wheel Compact Wheel Compact Wheel Compact Wheel Heat Sink Signal Interpreter Hacking Suite Spread Laser Spread Laser Light Cannon Light Cannon Light Cannon Light Cannon Peak State ------------ > --- POWER ------------ Ion Engine > --- PROPULSION ------- Wheel Compact Wheel > --- UTILITY ---------- Heat Sink Huge Storage Unit > --- WEAPON ----------- Spread Laser Light Cannon > --- INVENTORY -------- Light Ion Engine Wheel Compact Wheel Compact Wheel Compact Wheel Compact Wheel Sensor Array Signal Interpreter Hacking Suite Spread Laser Spread Laser Light Cannon Light Cannon Light Cannon Light Cannon Light Cannon [Rating: 10] Favorites ----------- Power Ion Engine Engine Ion Engine Propulsion Wheel Wheel Wheel Utility Huge Storage Unit Device Sensor Array Storage Huge Storage Unit Weapon Spread Laser Energy Gun Spread Laser Ballistic Gun Assault Rifle Ballistic Cannon Light Cannon Impact Weapon Hammer Build | -11 -10 -10 ------- Run | Yrd Mat Sub Slots Evolved . | . . . Power . | . . . Propulsion . | . . . Utility . | . . . Weapon . | . . . Parts Attached 19 | 6 11 2 Power 3 | 1 2 . Engine 3 | 1 2 . Core . | . . . Reactor . | . . . Propulsion 4 | 2 1 1 Treads . | . . . Leg . | . . . Wheel 4 | 2 1 1 Hover . | . . . Flight . | . . . Utility 5 | 1 4 . Device 2 | . 2 . Storage 3 | 1 2 . Processor . | . . . Hackware . | . . . Protection . | . . . Artifact . | . . . Weapon 7 | 2 4 1 Energy Gun 2 | . 2 . Energy Cannon . | . . . Ballistic Gun 2 | 2 . . Ballistic Cannon 2 | . 1 1 Launcher . | . . . Special Weapon . | . . . Impact Weapon 1 | . 1 . Slashing Weapon . | . . . Piercing Weapon . | . . . Special Melee Weapon . | . . . Unidentified Prototypes . | . . . Parts Lost 1 | . 1 . Power 1 | . 1 . Propulsion . | . . . Utility . | . . . Weapon . | . . . Highest Loss Streak 1 | . 1 . To Critical Strikes . | . . . Average Backups 9 | . 9 15 Power . | . . 1 Propulsion 3 | . 3 5 Utility 1 | . 1 3 Weapon 4 | . 4 6 Tool/Special . | . . . Unused Backups 14 | . . 14 Power 1 | . . 1 Propulsion 5 | . . 5 Utility 2 | . . 2 Weapon 6 | . . 6 Tool/Special . | . . . Average Slot Usage (%) 90 | . 89 100 Engine 14 | . 14 14 Wheel 28 | . 28 28 Device 5 | . 4 14 Storage 14 | . 14 14 Energy Gun 12 | . 13 . Ballistic Gun 4 | . 4 . Ballistic Cannon 10 | . 9 28 Peak Build Rating 10 | 6 10 10 Average Rating 8 | 3 8 8 On Entrance 5 | . 6 10 Avg Prop Armor Cover (%) . | . . . Naked Turns . | . . . Heaviest Build 92 | 12 92 92 Greatest Support 30 | 26 26 30 Greatest Overweight (x) 3 | . 3 3 Average Overweight (x) 1 | . 1 3 Largest Inventory Capacity 25 | 8 25 25 Average Capacity 20 | 6 20 25 Most Carried 16 | . 16 16 Average Carried 10 | . 9 15 Final Capacity 25 | 8 25 25 Final Carried 16 | . 16 15 Class Distribution -------------------- 100% | Mutant Dominant Class ---------------- Mutant | -10/Materials Mutant | -10/Subcaves Resources | -11 -10 -10 ----------- Run | Yrd Mat Sub Matter Collected 572 | 225 268 79 Remotely . | . . . Salvage Created 511 | . 455 56 Parts 43 | . 42 1 Haulers Intercepted 1 | . 1 . Recyclers Shooed . | . . . Parts Field Recycled . | . . . Retrieved Matter . | . . . Parts Self-Destructed . | . . . Prevented . | . . . Parts Restored . | . . . Kills | -11 -10 -10 ------- Run | Yrd Mat Sub Combat Hostiles Destroyed 17 | . 14 3 Guns 14 | . 14 . Cannons 3 | . . 3 Classes Destroyed 8 | . 7 1 Worker 2 | . 2 . Hauler 1 | . 1 . Mechanic 1 | . 1 . Operator 1 | . 1 . Watcher 2 | . 2 . Swarmer 6 | . 6 . Grunt 8 | . 8 . Subdweller 3 | . . 3 Best Kill Streak 4 | . 4 2 Combat Bots Only 3 | . 3 2 Max Kills in Single Turn 1 | . 1 1 Gunslinging . | . . . Exploded . | . . . Melee . | . . . Uniques/NPCs Destroyed . | . . . Combat | -11 -10 -10 -------- Run | Yrd Mat Sub Hostile Shots Fired 78 | . 48 30 Missed 23 | . 9 14 Hits 55 | . 39 16 Projectile 55 | . 39 16 Critical Strikes 1 | . 1 . Damage Taken 735 | . 405 330 Core 250 | . 150 100 Absorbed by Shields . | . . . Core Remaining (%) 100 | 100 . . Volleys Fired 65 | . 49 16 Largest 2 | . 2 2 Hottest 95 | . 95 60 Shots Fired 125 | . 93 32 Gun 75 | . 75 . Cannon 50 | . 18 32 Launcher . | . . . Special . | . . . Kinetic 81 | . 49 32 Thermal 44 | . 44 . Explosive . | . . . Electromagnetic . | . . . Robot Hit Streak 8 | . 8 7 Robot Miss Streak 7 | . 7 2 Penetration Max . | . . . Secondary Targets . | . . . Shots Hit Robots 86 | . 67 19 Core Hits 73 | . 67 6 Critical Kills . | . . . Critical Parts Destroyed . | . . . Critical Strikes . | . . . Melee Attacks 1 | . 1 . Impact 1 | . 1 . Slashing . | . . . Piercing . | . . . Sneak Attacks . | . . . Combat Hostiles . | . . . Follow-up Attacks . | . . . Damage Inflicted 1205 | . 916 289 Guns 758 | . 758 . Cannons 447 | . 158 289 Explosions . | . . . Melee . | . . . Ramming . | . . . Kinetic 683 | . 394 289 Thermal 522 | . 522 . Explosive . | . . . Electromagnetic . | . . . Impact . | . . . Slashing . | . . . Piercing . | . . . Highest Corruption . | . . . Average Corruption . | . . . Corruption Purged . | . . . Corruption Blocked . | . . . Overload Shots . | . . . Overflow Damage . | . . . Projectiles . | . . . Explosions . | . . . Melee . | . . . Knockbacks 5 | . 3 2 Impact . | . . . Kinetic 5 | . 3 2 Secondary . | . . . Self-Inflicted Damage . | . . . Shots . | . . . Rammed . | . . . Targets Rammed . | . . . Kicked . | . . . Crushed . | . . . Highest Temperature 321 | . 321 . Average Temperature 80 | . 80 . Received Heat Transfer 177 | . 177 . Siege Activations . | . . . Martial Activations . | . . . Shielding Activations . | . . . Robots Disrupted . | . . . Combat Hostiles . | . . . Robots Corrupted . | . . . Combat Hostiles . | . . . Parts Fried . | . . . Impact Corruptions . | . . . Robots Melted . | . . . Combat Hostiles . | . . . Parts Melted . | . . . Heat Transferred 660 | . 660 . Parts Sabotaged . | . . . Parts Stolen . | . . . Parts Stripped . | . . . Power Chain Reactions . | . . . Alert | -11 -10 -10 ------- Run | Yrd Mat Sub Maximum Alert Level . | . . . Low Security (%) 100 | 100 100 . Level 1 . | . . . Level 2 . | . . . Level 3 . | . . . Level 4 . | . . . Level 5 . | . . . High Security . | . . . Max Security . | . . . Peak Influence 120 | . 120 . Initial . | . . . Average 43 | . 45 . Influence Increases 463 | . 463 . Destroy 0b10 Robot/C 280 | . 280 . Destroy 0b10 Robot/NC 35 | . 35 . Destroy Leader 56 | . 56 . Successful Hack 16 | . 16 . Disable Machine 30 | . 30 . Destroy Structure 1 | . 1 . Lose Combat Pursuer 45 | . 45 . Influence Decreases 463 | . 463 . Time Decay 453 | . 453 . Lost Part 10 | . 10 . Squads Dispatched 2 | . 2 . Investigation 1 | . 1 . Extermination . | . . . Reinforcement 1 | . 1 . Assault . | . . . Garrison . | . . . Intercept . | . . . Searches Triggered . | . . . Construction Impeded . | . . . Haulers Reinforced . | . . . Active Scanning Responses . | . . . Cargo Convoy Interrupts . | . . . Stealth | -11 -10 -10 --------- Run | Yrd Mat Sub Distress Signals . | . . . Communications Jammed . | . . . Distress Signals . | . . . Times Spotted 26 | . 22 4 Peak Tracking Total 4 | . 4 2 Tactical Retreats 2 | . 2 . Traps | -11 -10 -10 ------- Run | Yrd Mat Sub Traps Triggered 1 | . 1 . Indirectly . | . . . Trap Hack Attempts . | . . . Triggered . | . . . Disarmed . | . . . Reprogrammed . | . . . Reused . | . . . Traps Extracted . | . . . Installed . | . . . Triggered . | . . . Machines | -11 -10 -10 ---------- Run | Yrd Mat Sub Machines Disabled 2 | . 2 . Max in Single Turn 1 | . 1 . Machines Repaired . | . . . Machines Dismantled . | . . . Machines Sabotaged . | . . . Overloaded Fab Kills . | . . . Hacking | -11 -10 -10 --------- Run | Yrd Mat Sub Machines Accessed 9 | . 9 . Terminals 7 | . 7 . Fabricators . | . . . Repair Stations . | . . . Recycling Units 2 | . 2 . Scanalyzers . | . . . Garrison Access . | . . . Total Hacks 26 | . 26 . Successful 8 | . 8 . Failed 18 | . 18 . Catastrophic 1 | . 1 . Database Lockouts . | . . . Manual 11 | . 11 . Terminals 21 | . 21 . Fabricators . | . . . Repair Stations . | . . . Recycling Units 5 | . 5 . Scanalyzers . | . . . Garrison Access . | . . . Terminal Hacks 5 | . 5 . Alert Level 1 | . 1 . Locate Traps 1 | . 1 . Registered Components 1 | . 1 . Zone Layout 2 | . 2 . Fabricator Hacks . | . . . Repair Station Hacks . | . . . Recycling Unit Hacks . | . . . Scanalyzer . | . . . Garrison Access Hacks . | . . . Unauthorized Hacks 3 | . 3 . Terminals 3 | . 3 . Track 1 | . 1 . Botnet 2 | . 2 . Fabricators . | . . . Repair Stations . | . . . Recycling Units . | . . . Scanalyzers . | . . . Garrison Access . | . . . Data Cores Recovered . | . . . Used . | . . . Hacking Detections 9 | . 9 . Full Trace Events . | . . . Feedback Events . | . . . Feedback Blocked . | . . . Robot Schematics Acquired . | . . . Robots Built . | . . . Authchips . | . . . Time . | . . . Total Robot Build Rating . | . . . Part Schematics Acquired . | . . . Parts Built . | . . . Authchips . | . . . Time . | . . . Total Part Build Rating . | . . . Part Studies Acquired . | . . . Parts Repaired . | . . . Time . | . . . Parts Recycled . | . . . Recycled Matter . | . . . Retrieved Matter . | . . . Retrieved Components . | . . . Parts Scanalyzed . | . . . Part Schematics Acquired . | . . . Parts Damaged . | . . . Bothacking | -11 -10 -10 ------------ Run | Yrd Mat Sub Used RIF Installer . | . . . Robots Hacked . | . . . Non-combat . | . . . Combat . | . . . Robot Hacks Applied . | . . . Relay Couplers Released . | . . . Fabnet Peak Effective % . | . . . Robots Rewired . | . . . Allies Hacked . | . . . Hacks Repelled . | . . . Allies | -11 -10 -10 -------- Run | Yrd Mat Sub Total Allies . | . . . Largest Group . | . . . Highest-Rated Group . | . . . Highest-Rated Ally . | . . . Total Orders . | . . . Ally Attacks . | . . . Total Damage . | . . . Kills . | . . . Allies Corrupted . | . . . Allies Melted . | . . . Intel | -11 -10 -10 ------- Run | Yrd Mat Sub Active Infowar (turns) 284 | . 186 98 Sensors 284 | . 186 98 Robot Analysis Total . | . . . Derelict Logs Recovered . | . . . Drone Launches . | . . . Drone Recoveries . | . . . Exploration | -11 -10 -10 ------------- Run | Yrd Mat Sub Turns Passed 1478 | 38 1342 98 Spaces Moved 766 | 40 692 34 Core 13 | 13 . . Treads . | . . . Legs . | . . . Wheels 753 | 27 692 34 Hover . | . . . Flight . | . . . Fastest Speed 50 | 50 90 131 Average Speed 116 | 74 118 132 Slowest Speed 135 | 90 135 135 Overloaded Moves . | . . . Propulsion Burnouts . | . . . Robots Hopped . | . . . Potential Cave-ins . | . . . Cave-ins Triggered . | . . . Exploration Rate (%) 32 | 3 93 1 Regions Visited 2 Branch Regions 1 Pre-discovered Areas . | . . . Known Exits Taken . | . . . Unknown Exits Taken 2 | 1 1 . Scrap Searched . | . . . Spaces Dug . | . . . Terrain Destroyed . | . . . Melee . | . . . Projectile . | . . . AOE . | . . . Terrain Rammed . | . . . Walls Destroyed . | . . . Machines Disabled . | . . . Actions | -11 -10 -10 --------- Run | Yrd Mat Sub Total 1222 | 45 1120 57 Wait 342 | . 339 3 Move 764 | 39 691 34 Hop . | . . . Pick Up 19 | . 19 . Fast Attach 12 | 6 6 . Attach . | . . . Detach 1 | . 1 . Swap 8 | . 6 2 Drop 10 | . 8 2 Fire 65 | . 49 16 Melee 1 | . 1 . Ram . | . . . Kick . | . . . Crush . | . . . Escape Stasis . | . . . Rewire . | . . . Trap . | . . . Miscellaneous . | . . . Route ------- -11/Scrapyard -10/Materials (discovered 5 exits: [*Mat x3] / [*Min] / [*Sub]) -10/Subcaves History --------- Turn | Location | Event 2 | -11/Scrapyard | Met Revision 17 20 | -11/Scrapyard | Discovered new exit (range 16) 39 | -11/Scrapyard | Entered Materials 206 | -10/Materials | Discovered new exit (range 10) 310 | -10/Materials | Build established: Mutant 450 | -10/Materials | Discovered new exit (range 7) 522 | -10/Materials | Discovered new exit (range 10) 751 | -10/Materials | Core integrity fell below 50% 996 | -10/Materials | Discovered new exit (range 13) 1366 | -10/Materials | Discovered new exit (range 5) 1381 | -10/Materials | Entered Subcaves 1420 | -10/Subcaves | Core integrity fell below 20% 1479 | -10/Subcaves | Destroyed by L8-5OZ(R) with Subdweller Machine Gun Last Messages --------------- 01375_ T-07 Excavator is excavating. 01377_ U-05 Engineer lays Concrete. 01379_ T-07 Excavator is excavating. 01379_ U-05 Engineer lays Concrete. LOCATION=UNKNOWN AMBIENT_HEAT=-10 GOAL=ESCAPE 01383_ Dropped Spread Laser. 01416_ 7Z-BKI(R) destroyed. 01419_ NS-28F(R) destroyed. 01422_ Acquired 3 matter. 01424_ Subatomizers dissect the Sub. Monowheel. 01424_ Acquired 33 matter. 01425_ Acquired 25 matter. 01426_ Acquired 10 matter. 01431_ Dropped Com. Wheel. 01431_ Acquired 8 matter. 01434_ Subatomizers dissect the Com. Wheel. 01470_ JW-F5D(R) knocked back. 01479_ JW-F5D(R) destroyed. Map ----- +----------------------------------------------------+ | | | | | ?????????????????????????????????????????????????? | | ?????????????????????????????????????????????????? | | ?????????????????????????????????????????????????? | | ?????????????????????????????????????????????????? | | ?????????????????????????????????????????????????? | | ?????????????????????????????????????????????????? | | ?????????????????????????????????????????????????? | | ?????????????????????????????????????????????????? | | ?????????????????????????????????????????????????? | | ?????????????????????????????????????????????????? | | ?????????????????????????????????????????????????? | | ?????????????????????????????????????????????????? | | ?????????????????????????????????????????????????? | | ?????????????????????????????????????????????????? | | ?????????????????????????????????????????????????? | | ?????????????????##?######???????????????????????? | | ?????????????????# # # ###?????????????????????? | | ?????????????????? "" #?????????????????????? | | ????????????????????? "##???##????????????????? | | ???????????????????????# "### ##???????????????? | | ???????????????????????# """"""???????????????? | | ??????????????????????## #"""""???????????????? | | ??????????????????????# ###??""????????????????? | | ??????????????????????# [@##???"#????????????????? | | ??????????????????????# ##? "#????????????????? | | ??????????????????????# !/ ##""##???????????????? | | ??????????????????????# R & """""#???????????????? | | ??????????????????????# = "#???????????????? | | ??????????????????????# %### ##???????????????? | | ?????????????????????#%%"##??# ##????????????????? | | ??????????????????? ##????##?????????????????? | | ?????????????????# # #?????????????????????????? | | ????????????????#" ##??????????????????????????? | | ????????????????## ?????????????????????????????? | | ????????????????#" ??????????????????????????????? | | ???????????????? "???????????????????????????????? | | ????????????????""???????????????????????????????? | | ?????????????????????????????????????????????????? | | ?????????????????????????????????????????????????? | | ?????????????????????????????????????????????????? | | ?????????????????????????????????????????????????? | | ?????????????????????????????????????????????????? | | ?????????????????????????????????????????????????? | | ?????????????????????????????????????????????????? | | ?????????????????????????????????????????????????? | | ?????????????????????????????????????????????????? | | ?????????????????????????????????????????????????? | | ?????????????????????????????????????????????????? | +----------------------------------------------------+ Best States ------------- Heat Dissipation 35 Energy Generation 10 Energy Capacity 250 Matter Stores 300 Matter Capacity 300 Sight Range 16 Robot Scan Range 14 Terrain Scan Density 10 Evasion (%) 44 Item Schematics ----------------- None Robot Schematics ------------------ None Fabricated ------------ Nothing Repaired ---------- Nothing Studied --------- None Alien Tech Used ----------------- None Achievements -------------- None Challenges ------------ None Game ------ Seed GuidedElectronSteel Manual? 0 Play Time 00:11:01 Cumulative 162.1 hours Start 2025.12.07 @ 23:04:19 End 2025.12.07 @ 23:14:32 Sessions 1 Manual Loads 0 Difficulty Rogue Special Mode None Game No. 93 Rogue 93 Adventurer 0 Explorer 0 Win Type - Total 1 Types 1/0/0/0/0/0/0/0/0/0 Lore% 69 Gallery% 62 Achievement% 51 Wizard Run 0 Options --------- Layout 1 ASCII 0 Keyboard 0 Movement Mouse Keybinds 0 Fullscreen 2 Font 32/SmallcapsGlow Map View 50x35 Zoom Use 0% Tactical HUD 1 Map Filters NONE Filters NONE Steam 1 RUN: 2188116e-22b8-4026-9082-3c3582cf75d9